Cogmind - Beta 13 @@@ ROGUE MODE // 2024.04.11 @ 13:38:06 Player: Zaz Result: Destroyed by S-43 Plague with Heavy Machine Gun Performance ------------- Evolutions (9) 4500 Regions Visited (24) 4800 Robots Destroyed (228) 1140 Value Destroyed (7803) 7803 Prototype IDs (53) 1060 Alien Tech Used (2) 400 Bonus (5367) 5367 TOTAL SCORE: 25070 Bonus ------- Triggered Max Security 1000 High Alert Combat Kills 1347 Follower Combat Kills 1667 Entered DSFs 500 Network Hubs Disabled 200 Aligned with FarCom 300 Met Zhirov 300 Built Enhanced Grunts 300 A7 Reached Mainframe 300 Met R17 at Cetus 500 Friendly Fire -1047 Cogmind --------- Core Integrity 0/1600 Matter 192/300 Energy 80/150 System Corruption 28% Temperature Cool (0) Movement Treading (145) Location -1/Access Parts ------- > --- POWER (2) -------- Micro Antimatter Reactor > --- PROPULSION (6) --- Biometal Heavy Treads > --- UTILITY (13) ----- (None) > --- WEAPON (4) ------- (None) > --- INVENTORY (5) ---- Advanced ECM Suite Graphene Brace Peak State ------------ > --- POWER ------------ Micro Fission Core Light Antimatter Reactor > --- PROPULSION ------- Cooled Aerolev Unit Cooled Gravmag System Cooled Gravmag System Cooled Gravmag System Improved Linear Gravjet Improved Linear Gravjet > --- UTILITY ---------- Advanced Cryofiber Web Advanced Heat Sink Advanced Heat Sink Medium Storage Unit Advanced Weight Redist. System Advanced Targeting Computer Recoil Nullifier Particle Accelerator Advanced Reaction Control System Phase Shifter Experimental Utility Shielding Hardened Medium Armor Plating Graphene Brace > --- WEAPON ----------- Hypervelocity EM Gauss Rifle Advanced Variable Charge Gun Enhanced Quantum Rifle Enhanced Quantum Rifle > --- INVENTORY -------- Particle Reactor Antigrav System Advanced ECM Suite Centrium Medium Armor Plating Advanced Variable Charge Gun Enhanced Nova Cannon KE Penetrator Hypervelocity Coil Gun Advanced KE Penetrator Micro-nuke Launcher [Rating: 161] Favorites ----------- Power Light Fission Core Engine Light Deuterium Engine Power Core Light Fission Core Reactor Light Antimatter Reactor Propulsion Gravmag Array Treads Light Treads Wheel Wheel Hover Unit Gravmag Array Utility Medium Storage Unit Device Improved Heat Sink Storage Medium Storage Unit Processor Advanced Targeting Computer Protection Improved Light Armor Plating Weapon Advanced KE Penetrator Energy Gun Particle Gun Energy Cannon Heavy Ion Cannon Ballistic Gun Advanced KE Penetrator Ballistic Cannon Bore Cannon Launcher Improved Grenade Launcher Impact Weapon Heavy Mace Build | -11 -10 -10 -9 -9 -9 -8 -8 -7 -6 -6 -6 -6 -6 -5 -5 -5 -5 -4 -4 -3 -3 -2 -2 -1 ------- Run | Yrd Mat Min Mat Min Exi Min Mat Fac Fac Ext Cet Arc Hub Fac Upp Upp Zhi Pro Fac Res Tes Res DSF Acc Slots Evolved 18 | . . . 2 . . . 2 2 2 . . . . 2 . . . . 2 2 . 2 . 2 Power 1 | . . . . . . . . . . . . . . 1 . . . . . . . . . . Propulsion 4 | . . . . . . . 1 1 . . . . . 1 . . . . . . . 1 . . Utility 11 | . . . 2 . . . 1 1 2 . . . . . . . . . 1 1 . 1 . 2 Weapon 2 | . . . . . . . . . . . . . . . . . . . 1 1 . . . . Parts Attached 299 | 7 7 2 21 4 2 5 25 26 17 18 21 . 28 9 7 9 10 6 16 4 2 . 8 45 Power 33 | 1 1 2 2 . . . 1 3 2 1 . . 2 4 . 3 1 . . 1 . . 1 8 Engine 12 | 1 1 2 2 . . . 1 . . . . . 1 3 . 1 . . . . . . . . Core 14 | . . . . . . . . 3 2 1 . . 1 1 . 1 1 . . . . . 1 3 Reactor 7 | . . . . . . . . . . . . . . . . 1 . . . 1 . . . 5 Propulsion 53 | 2 4 . 2 . . . 4 5 6 . 2 . 4 1 . . 3 . 3 . 1 . 2 14 Treads 4 | . 2 . . . . . . . . . 1 . . . . . . . . . . . . 1 Leg . | . . . . . . . . . . . . . . . . . . . . . . . . . Wheel 8 | 2 2 . 2 . . . 2 . . . . . . . . . . . . . . . . . Hover 41 | . . . . . . . 2 5 6 . 1 . 4 1 . . 3 . 3 . 1 . 2 13 Flight . | . . . . . . . . . . . . . . . . . . . . . . . . . Utility 89 | 2 1 . 6 1 1 . 6 11 7 3 6 . 10 3 3 3 4 2 10 1 . . 3 6 Device 41 | 1 . . 2 . . . 4 5 3 2 2 . 1 2 1 2 2 1 6 1 . . 2 4 Storage 9 | 1 1 . 1 . 1 . . 1 2 . . . 1 . . . . . . . . . 1 . Processor 9 | . . . . . . . . 2 2 . . . 3 . 1 . . . 1 . . . . . Hackware . | . . . . . . . . . . . . . . . . . . . . . . . . . Protection 30 | . . . 3 1 . . 2 3 . 1 4 . 5 1 1 1 2 1 3 . . . . 2 Artifact . | . . . . . . . . . . . . . . . . . . . . . . . . . Weapon 124 | 2 1 . 11 3 1 5 14 7 2 14 13 . 12 1 4 3 2 4 3 2 1 . 2 17 Energy Gun 30 | . . . 6 . . . . 1 . . 2 . 3 1 1 1 1 2 1 1 1 . . 9 Energy Cannon 13 | . . . 2 . 1 . 6 2 . . . . 1 . . . . . . . . . . 1 Ballistic Gun 44 | 2 1 . . 1 . 1 2 2 . 8 8 . 6 . 2 2 1 2 2 . . . . 4 Ballistic Cannon 1 | . . . . . . . . . . 1 . . . . . . . . . . . . . . Launcher 31 | . . . 1 2 . 4 6 2 1 3 3 . 2 . 1 . . . . 1 . . 2 3 Special Weapon . | . . . . . . . . . . . . . . . . . . . . . . . . . Impact Weapon 5 | . . . 2 . . . . . 1 2 . . . . . . . . . . . . . . Slashing Weapon . | . . . . . . . . . . . . . . . . . . . . . . . . . Piercing Weapon . | . . . . . . . . . . . . . . . . . . . . . . . . . Special Melee Weapon . | . . . . . . . . . . . . . . . . . . . . . . . . . Unidentified Prototypes 19 | . . . 2 . . . . 2 1 . 4 . 4 . . . 5 . . . 1 . . . Parts Lost 65 | . 1 . 2 2 . . 1 2 . 3 2 . 7 2 1 3 . . . 1 1 . . 37 Power 9 | . 1 . . . . . . . . 1 . . 1 1 . 1 . . . 1 . . . 3 Propulsion 16 | . . . 1 . . . . 2 . . . . 1 . . . . . . . 1 . . 11 Utility 27 | . . . 1 2 . . 1 . . 2 2 . 4 . . 2 . . . . . . . 13 Weapon 13 | . . . . . . . . . . . . . 1 1 1 . . . . . . . . 10 Highest Loss Streak 33 | . 1 . 2 2 . . 1 1 . 1 2 . 7 1 1 1 . . . 1 1 . . 33 To Critical Strikes . | . . . . . . . . . . . . . . . . . . . . . . . . . Average Slot Usage (%) 90 | . 96 100 99 87 88 88 98 88 87 80 85 86 87 85 88 86 89 94 95 95 95 86 91 83 Engine 4 | . 10 14 11 11 11 11 9 2 . . . . . 6 5 3 . . . . . . . . Core 3 | . . . . . . . . 4 6 6 6 6 5 2 5 4 6 11 10 1 . . 2 3 Wheel 8 | . 22 28 21 22 22 22 24 . . . . . . . . . . . . . . . . . Hover 13 | . . . . . . . 2 29 20 13 12 13 16 17 17 17 19 23 22 23 23 21 22 20 Device 19 | . 14 14 21 11 11 11 21 15 25 17 25 26 14 15 19 25 19 17 24 27 28 26 28 29 Storage 8 | . 14 14 11 11 11 11 9 7 12 13 6 6 6 5 5 5 5 5 5 4 4 4 4 3 Processor 4 | . . . . . . . . 3 6 13 6 6 13 7 5 5 5 5 5 4 4 4 4 3 Protection 9 | . . . 11 10 11 11 13 9 6 6 12 13 16 17 15 7 13 17 11 9 9 8 8 5 Energy Gun 2 | . . . 20 . . . . . . . . . . . . . . 1 . . 4 8 8 12 Energy Cannon 2 | . . . . 3 9 . 7 7 . . . . . . . . . . . . . . . . Ballistic Gun 8 | . 28 28 . 10 11 9 2 3 4 6 12 13 12 10 10 10 10 9 14 14 13 8 5 . Launcher 1 | . . . . 7 1 12 8 . 1 . . . . . . . . . . 3 . . 2 . Naked Turns 11 | . . . . . . . . . . . . . . . . . . . . . . . . 11 Heaviest Build 76 | 14 29 29 42 40 60 61 73 76 38 40 46 46 51 47 48 57 59 50 57 64 62 62 73 71 Greatest Support 75 | 26 40 26 26 20 20 20 30 36 40 46 46 46 46 56 56 56 59 59 64 64 64 64 73 75 Greatest Overweight (x) 7 | . 1 1 2 1 2 3 7 2 1 . 5 . 5 1 . 1 1 . . . 1 . . 1 Average Overweight (x) . | . . 1 1 1 1 2 2 . . . . . . . . . . . . . . . . . Largest Inventory Capacity 20 | 8 15 15 15 15 20 20 20 20 10 10 10 10 10 10 10 10 10 10 10 10 10 10 10 10 Average Capacity 12 | 7 11 15 15 15 15 20 20 12 10 10 10 10 10 10 10 10 10 10 10 10 10 10 10 9 Most Carried 20 | 6 15 15 15 15 18 20 20 20 10 10 10 10 10 10 10 10 10 10 10 10 10 10 10 10 Average Carried 11 | 3 9 14 14 13 14 18 19 12 9 9 9 10 9 9 9 9 8 10 9 9 9 10 9 9 Final Capacity 20 | 8 15 15 15 15 20 20 20 10 10 10 10 10 10 10 10 10 10 10 10 10 10 10 10 5 Final Carried 20 | 6 15 15 15 13 18 20 20 10 10 10 10 10 10 10 10 8 10 10 10 9 10 10 10 2 Class Distribution -------------------- 39% | Mutant 26% | Scavenger-Mutant 10% | Scout 7% | Scavenger-Tank 7% | Scavenger-Scout 4% | Commander-Mutant Dominant Class ---------------- Mutant | -10/Materials Mutant | -10/Mines Mutant | -9/Materials Mutant | -9/Mines Mutant | -9/Exiles Mutant | -8/Mines Mutant | -8/Materials Mutant | -7/Factory Scout | -6/Factory Commander-Mutant | -6/Extension Scavenger-Mutant | -6/Cetus Scavenger-Mutant | -6/Archives Scavenger-Mutant | -6/Hub_04(d) Scavenger-Mutant | -5/Factory Scavenger-Mutant | -5/Upper Caves Scavenger-Mutant | -5/Upper Caves Scavenger-Mutant | -5/Zhirov Scavenger-Mutant | -4/Proximity Caves Scavenger-Tank | -4/Factory Scavenger-Tank | -3/Research Scavenger-Tank | -3/Testing Scavenger-Tank | -2/Research Scavenger-Tank | -2/DSF Scavenger-Tank | -1/Access Resources | -11 -10 -10 -9 -9 -9 -8 -8 -7 -6 -6 -6 -6 -6 -5 -5 -5 -5 -4 -4 -3 -3 -2 -2 -1 ----------- Run | Yrd Mat Min Mat Min Exi Min Mat Fac Fac Ext Cet Arc Hub Fac Upp Upp Zhi Pro Fac Res Tes Res DSF Acc Matter Collected 5785 | 291 293 61 228 50 50 56 455 541 226 583 404 56 645 315 145 234 190 115 337 . . . 8 502 Remotely . | . . . . . . . . . . . . . . . . . . . . . . . . . Salvage Created 8660 | 57 618 85 518 119 . 80 617 682 429 1394 420 170 1128 567 204 256 275 135 389 . . . . 517 Parts 497 | 6 41 11 31 11 . 18 42 41 35 60 16 9 62 39 15 10 3 6 12 . . . . 29 Haulers Intercepted 7 | . . . 2 . . . 1 . . . . . 3 . . . . . 1 . . . . . Recyclers Shooed 4 | . . . 1 . . . . . . . . . 1 1 . . . . . . . . . 1 Parts Field Recycled . | . . . . . . . . . . . . . . . . . . . . . . . . . Retrieved Matter . | . . . . . . . . . . . . . . . . . . . . . . . . . Parts Self-Destructed 34 | . . . . . . . . . . . . . . . 8 17 3 6 . . . . . . Prevented 7 | . . . . . . . . . . . . . . . 6 1 . . . . . . . . Kills | -11 -10 -10 -9 -9 -9 -8 -8 -7 -6 -6 -6 -6 -6 -5 -5 -5 -5 -4 -4 -3 -3 -2 -2 -1 ------- Run | Yrd Mat Min Mat Min Exi Min Mat Fac Fac Ext Cet Arc Hub Fac Upp Upp Zhi Pro Fac Res Tes Res DSF Acc Combat Hostiles Destroyed 157 | . 13 5 7 6 . 8 17 11 11 26 8 2 9 5 8 4 . 3 1 . . . . 13 Melee 1 | . . . . . . . . . . . . . . . . . . . . . . . . 1 Guns 92 | . 13 5 4 1 . . 1 5 8 19 4 2 9 5 3 4 . 3 1 . . . . 5 Cannons 4 | . . . . . . . 2 2 . . . . . . . . . . . . . . . . AOE 59 | . . . 3 5 . 8 14 3 3 7 4 . . . 5 . . . . . . . . 7 Classes Destroyed 18 | 1 6 . 2 . . 1 1 1 . 2 1 . 1 . . . . 1 . . . . . 1 Worker 12 | . 1 . . 1 . . 2 1 . . . . 2 1 . . . . . . . . . 4 Builder 11 | . . . . . . 2 4 . . . . . 4 1 . . . . . . . . . . Tunneler 8 | 3 1 . 1 . . . . 1 . . . . 1 1 . . . . . . . . . . Hauler 7 | . . . 2 . . . 1 . . . . . 3 . . . . . 1 . . . . . Recycler 10 | . 1 . 2 . . . 1 2 . 1 . . 1 1 . . . . 1 . . . . . Carrier 1 | . . . . . . . . . . 1 . . . . . . . . . . . . . . Operator 8 | . 1 . 3 . . . 2 . . 1 . . 1 . . . . . . . . . . . Drone 1 | . . . . . . . . . . . . . . . . . . 1 . . . . . . Watcher 13 | . 2 . 1 . . . . 2 2 1 . . 3 1 . . . . 1 . . . . . Swarmer 61 | . 3 5 3 3 . 8 1 6 6 9 3 . . . 7 . . . . . . . . 7 Saboteur 1 | . . . . . . . . . . . . . . . . . . . . . . . . 1 Grunt 44 | . 10 . 2 3 . . 9 2 . 9 2 . 2 . . 2 . . . . . . . 3 Brawler 2 | . . . . . . . 1 . . 1 . . . . . . . . . . . . . . Sentry 26 | . . . 2 . . . 6 1 2 4 . 2 3 3 1 . . . 1 . . . . 1 Demolisher 1 | . . . . . . . . . . 1 . . . . . . . . . . . . . . Hunter 5 | . . . . . . . . . . . . . 3 . . 2 . . . . . . . . Programmer 11 | . . . . . . . . 2 3 1 . . . 2 . . . 2 . . . . . 1 Heavy 1 | . . . . . . . . . . . . . 1 . . . . . . . . . . . Cetus Guard 3 | . . . . . . . . . . . 3 . . . . . . . . . . . . . Thug 1 | . . . . . . . . . . 1 . . . . . . . . . . . . . . Guerrilla 1 | . . . . . . . . . . . 1 . . . . . . . . . . . . . Best Kill Streak 12 | 2 3 3 4 6 . 8 8 3 4 7 5 2 12 5 5 2 . 2 2 . . . . 7 Combat Bots Only 8 | . 3 3 4 3 . 8 6 3 3 7 5 2 6 2 5 2 . 2 1 . . . . 5 Max Kills in Single Turn 5 | 1 2 1 3 4 . 4 3 2 1 3 2 1 2 2 4 1 . 1 1 . . . . 5 Gunslinging 1 | . . . . . . . . . . . . . 1 . . . . . . . . . . . Exploded 4 | . . . 3 3 . 4 2 2 1 3 2 . . . 4 . . . . . . . . 3 Melee 1 | . . . . . . . . . . . . . . . . . . . . . . . . 1 Uniques/NPCs Destroyed . | . . . . . . . . . . . . . . . . . . . . . . . . . Combat | -11 -10 -10 -9 -9 -9 -8 -8 -7 -6 -6 -6 -6 -6 -5 -5 -5 -5 -4 -4 -3 -3 -2 -2 -1 -------- Run | Yrd Mat Min Mat Min Exi Min Mat Fac Fac Ext Cet Arc Hub Fac Upp Upp Zhi Pro Fac Res Tes Res DSF Acc Hostile Shots Fired 1021 | . 62 16 24 13 . 6 29 52 24 103 21 5 188 27 22 34 . 33 16 3 8 . 27 308 Missed 393 | . 11 6 8 2 . 4 13 23 14 42 10 1 55 9 10 16 . 13 9 2 6 . 22 117 Damage Taken 11844 | 4 620 87 289 227 . 16 310 468 187 657 240 110 1892 410 243 306 . 309 148 25 113 . 205 4978 Core 2410 | . 131 36 48 39 . 1 34 15 15 169 43 . 125 45 . . . . . . . . 98 1611 Absorbed by Shields 418 | . . . . . . . . . . 278 133 . . . . . . . . . . . . 7 Redirected to Shielding 266 | . . . . . . . . 26 . . . . 10 45 8 18 . . 20 . 22 . . 117 Ignored by Resistances 19 | . . . . 3 . . 16 . . . . . . . . . . . . . . . . . Regen/Repaired (Parts) 34 | . . . . . . . 34 . . . . . . . . . . . . . . . . . Core Remaining (%) 84 | 100 . 33 . . . 78 93 97 . . . . 58 . . . . 90 100 . 100 . 93 . Volleys Fired 462 | 6 55 8 30 5 . 7 23 32 3 36 23 10 56 29 10 33 8 15 13 4 5 . 1 50 Largest 4 | 2 2 2 2 2 . 2 2 2 1 2 2 2 2 2 2 2 2 2 3 3 1 . 1 4 Hottest 410 | 40 40 40 133 98 . 66 140 140 36 71 240 70 160 70 115 80 80 240 103 240 240 . 40 410 Shots Fired 938 | 12 110 16 58 8 . 9 47 72 40 115 38 20 110 58 17 57 13 24 39 6 5 . 1 63 Gun 762 | 12 110 16 52 1 . 4 7 15 37 88 35 20 108 58 14 57 13 24 39 6 5 . 1 40 Cannon 101 | . . . 5 3 . . 8 51 . 18 . . . . . . . . . . . . . 16 Launcher 75 | . . . 1 4 . 5 32 6 3 9 3 . 2 . 3 . . . . . . . . 7 Special . | . . . . . . . . . . . . . . . . . . . . . . . . . Kinetic 646 | 12 110 16 . 1 . 4 7 15 37 106 34 20 90 58 7 48 10 18 39 3 . . . 11 Thermal 208 | . . . 57 3 . . 8 51 . . 1 . 18 . 1 9 3 6 . 3 5 . . 43 Explosive 75 | . . . 1 4 . 5 32 6 3 9 3 . 2 . 3 . . . . . . . . 7 Electromagnetic 9 | . . . . . . . . . . . . . . . 6 . . . . . . . 1 2 Robot Hit Streak 24 | 4 12 5 13 2 . 7 9 17 24 18 7 4 11 13 7 7 9 6 18 2 . . . 6 Robot Miss Streak 5 | 2 3 2 3 1 . . 1 1 2 5 4 3 3 2 1 5 . 2 2 1 . . 1 2 Penetration Max 2 | . . . . . . . . . . 2 2 1 1 1 . 1 1 . 1 . . . . . Secondary Targets 10 | . 1 2 . . . . . . . 1 2 . 1 . 1 1 . 1 . . . . . . Max Gunslinging Chain 1 | . 1 1 . . . . . . . 1 1 . 1 . 1 1 . 1 . . . . . . Autonomous 128 | . . . . . . . 6 15 37 70 . . . . . . . . . . . . . . Shots Hit Robots 551 | 8 67 10 35 3 . 5 25 45 32 71 20 8 70 44 13 15 9 9 35 2 . . . 25 Core Hits 388 | 4 33 6 18 8 . 8 44 19 22 59 24 7 45 18 10 10 9 5 14 . . . . 25 Critical Kills 28 | . . 1 . . . . . . . 5 5 1 3 5 . 4 . 2 1 . . . . 1 Critical Parts Destroyed 30 | . 1 . . . . 1 . . . 3 3 1 8 3 . 3 . 3 4 . . . . . Critical Strikes 65 | . 1 1 2 . . 1 . . . 10 9 2 11 9 . 7 . 5 6 . . . . 1 Burn 2 | . . . 2 . . . . . . . . . . . . . . . . . . . . . Destroy 63 | . 1 1 . . . 1 . . . 10 9 2 11 9 . 7 . 5 6 . . . . 1 Melee Attacks 14 | . . . 6 . . . . . 6 2 . . . . . . . . . . . . . . Impact 14 | . . . 6 . . . . . 6 2 . . . . . . . . . . . . . . Slashing . | . . . . . . . . . . . . . . . . . . . . . . . . . Piercing . | . . . . . . . . . . . . . . . . . . . . . . . . . Sneak Attacks . | . . . . . . . . . . . . . . . . . . . . . . . . . Combat Hostiles . | . . . . . . . . . . . . . . . . . . . . . . . . . Follow-up Attacks . | . . . . . . . . . . . . . . . . . . . . . . . . . Damage Inflicted 20383 | 100 870 119 804 367 . 542 2019 1605 1166 2959 630 287 2908 1334 631 317 190 195 721 54 . . . 2565 Guns 11762 | 91 699 119 498 17 . 62 102 552 899 2055 239 287 2511 1334 276 317 190 195 721 54 . . . 544 Cannons 1032 | . . . 81 . . . 131 778 . . . . . . . . . . . . . . . 42 Explosions 7450 | . 171 . 225 350 . 480 1786 271 267 897 391 . 386 . 355 . . . . . . . . 1871 Melee . | . . . . . . . . . . . . . . . . . . . . . . . . . Ramming 139 | 9 . . . . . . . 4 . 7 . . 11 . . . . . . . . . . 108 Kinetic 10352 | 91 699 119 . 17 . 62 102 552 899 2055 239 287 2129 1334 133 317 190 195 721 54 . . . 157 Thermal 2487 | . . . 579 . . . 131 778 . 173 . . 382 . 19 . . . . . . . . 425 Explosive 7182 | . 171 . 225 350 . 480 1786 271 267 724 391 . 291 . 355 . . . . . . . . 1871 Electromagnetic 223 | . . . . . . . . . . . . . 95 . 124 . . . . . . . . 4 Impact . | . . . . . . . . . . . . . . . . . . . . . . . . . Slashing . | . . . . . . . . . . . . . . . . . . . . . . . . . Piercing . | . . . . . . . . . . . . . . . . . . . . . . . . . Highest Corruption 28 | . 2 2 2 2 2 2 . 3 1 . . . . 1 . . . 1 . . . . . 28 Average Corruption 2 | . 1 2 1 2 2 2 . 2 1 . . . . 1 . . . 1 . . . . . 9 Corruption Purged 2 | . . . . . . . . . 1 . . . . 1 . . . . . . . . . . Corruption Blocked . | . . . . . . . . . . . . . . . . . . . . . . . . . Effects 52 | . 10 1 14 2 2 1 . 13 1 . . . . . . . . 2 . . . . . 6 Message Errors 12 | . 1 . 5 . 1 . . 4 . . . . . . . . . . . . . . . 1 Matter Fused 10 | . 1 1 3 . . . . 3 1 . . . . . . . . . . . . . . 1 Heat Flow Errors 8 | . 3 . . 1 1 . . 2 . . . . . . . . . . . . . . . 1 Energy Discharges 8 | . 2 . 3 1 . . . 2 . . . . . . . . . . . . . . . . Parts Fused 2 | . 1 . . . . 1 . . . . . . . . . . . . . . . . . . Data Loss (minor) 7 | . 2 . . . . . . 1 . . . . . . . . . 2 . . . . . 2 Data Loss (major) 2 | . . . 2 . . . . . . . . . . . . . . . . . . . . . Misfires 1 | . . . . . . . . 1 . . . . . . . . . . . . . . . . Alerts 1 | . . . . . . . . . . . . . . . . . . . . . . . . 1 Weapon Failures 1 | . . . 1 . . . . . . . . . . . . . . . . . . . . . Overload Shots 29 | . . . . . . . . . . . 1 . . . . . . 4 . 3 5 . . 16 Overflow Damage 573 | . 24 . 23 1 . 86 39 35 11 42 11 . 2 . 53 . . . . . . . . 246 Projectiles 55 | . . . . . . . . 35 . . . . . . . . . . . . . . . 20 Explosions 518 | . 24 . 23 1 . 86 39 . 11 42 11 . 2 . 53 . . . . . . . . 226 Melee . | . . . . . . . . . . . . . . . . . . . . . . . . . Knockbacks 3 | . . . . . . . . . . . . . . . . . . . . . . . . 3 Impact 2 | . . . . . . . . . . . . . . . . . . . . . . . . 2 Kinetic . | . . . . . . . . . . . . . . . . . . . . . . . . . Secondary 1 | . . . . . . . . . . . . . . . . . . . . . . . . 1 Self-Inflicted Damage 524 | 4 30 . 48 105 . 4 12 78 . 26 . . 110 . . . . . . . . . . 107 Shots 14 | . 1 . 1 4 . 1 2 2 . 1 . . 1 . . . . . . . . . . 1 Rammed 8 | 1 . . . . . . . 1 . 1 . . 1 . . . . . . . . . . 4 Targets Rammed 8 | 1 . . . . . . . 1 . 1 . . 1 . . . . . . . . . . 4 Kicked . | . . . . . . . . . . . . . . . . . . . . . . . . . Crushed . | . . . . . . . . . . . . . . . . . . . . . . . . . Highest Temperature 464 | . 254 . 132 203 275 18 57 254 . . 122 . 399 70 27 126 28 340 3 447 464 . . 395 Average Temperature 96 | . 53 . 46 77 142 7 19 91 . . 62 . 115 22 15 63 15 177 3 276 180 . . 169 Received Heat Transfer 1334 | . 291 . 42 69 . . 90 72 . 121 61 . 207 99 72 48 . . 9 . . . . 153 Effects 9 | . 1 . . . . . . . . . . . 1 . . . . . . 3 1 . . 3 Shutdowns 4 | . . . . . . . . . . . . . 1 . . . . . . 1 1 . . 1 Energy Bleed 3 | . 1 . . . . . . . . . . . . . . . . . . 2 . . . . Interference 1 | . . . . . . . . . . . . . . . . . . . . . . . . 1 Damage (minor) 1 | . . . . . . . . . . . . . . . . . . . . . . . . 1 Siege Activations . | . . . . . . . . . . . . . . . . . . . . . . . . . Robots Corrupted . | . . . . . . . . . . . . . . . . . . . . . . . . . Combat Hostiles . | . . . . . . . . . . . . . . . . . . . . . . . . . Parts Fried 1 | . . . . . . . . . . . . . 1 . . . . . . . . . . . Impact Corruptions 1 | . . . . . . . . . . . . . . . . . . . . . . . . 1 Robots Melted 1 | . . . . . . . . 1 . . . . . . . . . . . . . . . . Combat Hostiles 1 | . . . . . . . . 1 . . . . . . . . . . . . . . . . Parts Melted 6 | . . . 3 . . . 1 . . . . . 2 . . . . . . . . . . . Heat Transferred 3665 | . . . 1480 . . . 185 1036 . 50 . . 444 . 37 . . . . . . . . 433 Parts Sabotaged 2 | . . . . . . . . . . . . . . . . . . . . . . . . 2 Parts Stolen . | . . . . . . . . . . . . . . . . . . . . . . . . . Parts Stripped . | . . . . . . . . . . . . . . . . . . . . . . . . . Power Chain Reactions . | . . . . . . . . . . . . . . . . . . . . . . . . . Alert | -11 -10 -10 -9 -9 -9 -8 -8 -7 -6 -6 -6 -6 -6 -5 -5 -5 -5 -4 -4 -3 -3 -2 -2 -1 ------- Run | Yrd Mat Min Mat Min Exi Min Mat Fac Fac Ext Cet Arc Hub Fac Upp Upp Zhi Pro Fac Res Tes Res DSF Acc Peak Influence 1733 | 15 232 200 244 221 . 241 554 396 327 1279 1557 781 1117 763 . . . . 429 176 1733 1100 843 745 Initial 1100 | . 9 90 78 51 . . 93 247 169 76 716 542 273 546 . . . . 334 135 99 1100 828 505 Average 368 | 5 119 139 148 189 . 225 254 263 144 654 1072 745 585 656 . . . . 366 149 1658 1100 838 594 Maximum Alert Level 5 | . 1 1 1 1 . 1 2 1 1 4 4 3 4 3 . . . . 2 . 5 4 3 3 Low Security (%) 36 | 100 78 76 65 34 . 5 48 13 83 15 . . . . . . . . . 100 . . . . Level 1 30 | . 21 23 34 65 . 94 28 86 16 12 . . 14 . . . . . 86 . . . . . Level 2 17 | . . . . . . . 22 . . 21 . 19 71 56 . . . . 13 . . . . 85 Level 3 11 | . . . . . . . . . . 43 63 80 10 43 . . . . . . . . 100 14 Level 4 2 | . . . . . . . . . . 7 36 . 3 . . . . . . . . 100 . . Level 5 . | . . . . . . . . . . . . . . . . . . . . . . . . . High Security . | . . . . . . . . . . . . . . . . . . . . . . . . . Max Security 1 | . . . . . . . . . . . . . . . . . . . . . 99 . . . Squads Dispatched 49 | . 2 . 2 . . . 3 11 1 7 . . 7 1 . . . . 1 2 6 . . 6 Investigation 13 | . 1 . 1 . . . 1 7 . 2 . . 1 . . . . . . . . . . . Extermination 5 | . . . . . . . . 2 1 . . . . 1 . . . . . . . . . 1 Reinforcement 16 | . 1 . 1 . . . 2 2 . 4 . . 3 . . . . . 1 1 . . . 1 Assault 11 | . . . . . . . . . . 1 . . 3 . . . . . . . 6 . . 1 Garrison 4 | . . . . . . . . . . . . . . . . . . . . 1 . . . 3 Intercept . | . . . . . . . . . . . . . . . . . . . . . . . . . Searches Triggered . | . . . . . . . . . . . . . . . . . . . . . . . . . Construction Impeded 5 | . . . . . . . . 1 . 2 . . 1 . . . . . 1 . . . . . Haulers Reinforced . | . . . . . . . . . . . . . . . . . . . . . . . . . Active Scanning Responses . | . . . . . . . . . . . . . . . . . . . . . . . . . Cargo Convoy Interrupts . | . . . . . . . . . . . . . . . . . . . . . . . . . Stealth | -11 -10 -10 -9 -9 -9 -8 -8 -7 -6 -6 -6 -6 -6 -5 -5 -5 -5 -4 -4 -3 -3 -2 -2 -1 --------- Run | Yrd Mat Min Mat Min Exi Min Mat Fac Fac Ext Cet Arc Hub Fac Upp Upp Zhi Pro Fac Res Tes Res DSF Acc Distress Signals 15 | . 1 . . . . . 3 1 1 2 2 . 2 1 . . . . . . 1 . . 1 Communications Jammed . | . . . . . . . . . . . . . . . . . . . . . . . . . Distress Signals . | . . . . . . . . . . . . . . . . . . . . . . . . . Times Spotted 334 | . 25 6 17 6 . 6 25 20 14 39 23 9 17 11 7 13 . 8 7 2 37 . 3 39 Peak Tracking Total 27 | . 6 3 4 3 . 4 4 3 3 7 7 2 6 3 4 5 . 4 2 2 27 . 2 16 Tactical Retreats 21 | . 4 . 2 . . . . 1 1 2 . . . . . 3 . . . 1 2 . 1 4 Traps | -11 -10 -10 -9 -9 -9 -8 -8 -7 -6 -6 -6 -6 -6 -5 -5 -5 -5 -4 -4 -3 -3 -2 -2 -1 ------- Run | Yrd Mat Min Mat Min Exi Min Mat Fac Fac Ext Cet Arc Hub Fac Upp Upp Zhi Pro Fac Res Tes Res DSF Acc Traps Triggered 24 | . 3 . 4 . . . 3 1 2 . . . 1 1 . . . . 1 . 1 . 3 4 Indirectly . | . . . . . . . . . . . . . . . . . . . . . . . . . Trap Hack Attempts . | . . . . . . . . . . . . . . . . . . . . . . . . . Triggered . | . . . . . . . . . . . . . . . . . . . . . . . . . Disarmed . | . . . . . . . . . . . . . . . . . . . . . . . . . Reprogrammed . | . . . . . . . . . . . . . . . . . . . . . . . . . Reused . | . . . . . . . . . . . . . . . . . . . . . . . . . Traps Extracted . | . . . . . . . . . . . . . . . . . . . . . . . . . Installed . | . . . . . . . . . . . . . . . . . . . . . . . . . Triggered . | . . . . . . . . . . . . . . . . . . . . . . . . . Machines | -11 -10 -10 -9 -9 -9 -8 -8 -7 -6 -6 -6 -6 -6 -5 -5 -5 -5 -4 -4 -3 -3 -2 -2 -1 ---------- Run | Yrd Mat Min Mat Min Exi Min Mat Fac Fac Ext Cet Arc Hub Fac Upp Upp Zhi Pro Fac Res Tes Res DSF Acc Machines Disabled 50 | . 1 . 2 . . 1 7 3 . 5 3 5 18 1 . 1 . . . . 1 . . 2 Max in Single Turn 13 | . 1 . 1 . . 1 2 1 . 2 1 2 13 1 . 1 . . . . 1 . . 1 Garrison Access 6 | . . . . . . . 1 1 3 . . . 1 . . . . . . . . . . . Network Hub 1 | . . . . . . . . . . . . . 1 . . . . . . . . . . . Energy Cycler 2 | . . . . . . . . . . 2 . . . . . . . . . . . . . . Machines Repaired . | . . . . . . . . . . . . . . . . . . . . . . . . . Machines Dismantled . | . . . . . . . . . . . . . . . . . . . . . . . . . Machines Sabotaged . | . . . . . . . . . . . . . . . . . . . . . . . . . Overloaded Fab Kills . | . . . . . . . . . . . . . . . . . . . . . . . . . Hacking | -11 -10 -10 -9 -9 -9 -8 -8 -7 -6 -6 -6 -6 -6 -5 -5 -5 -5 -4 -4 -3 -3 -2 -2 -1 --------- Run | Yrd Mat Min Mat Min Exi Min Mat Fac Fac Ext Cet Arc Hub Fac Upp Upp Zhi Pro Fac Res Tes Res DSF Acc Machines Accessed 90 | . 3 . 7 . 2 . 9 16 11 8 3 . 9 1 . . 9 . 6 . . 1 . 5 Terminals 55 | . 3 . 7 . . . 5 10 4 8 3 . 9 1 . . . . 2 . . 1 . 2 Fabricators 8 | . . . . . . . . 4 2 . . . . . . . . . 2 . . . . . Repair Stations 5 | . . . . . . . 1 . 1 . . . . . . . . . 2 . . . . 1 Recycling Units 2 | . . . . . . . . . . . . . . . . . . . . . . . . 2 Scanalyzers 3 | . . . . . . . 2 . 1 . . . . . . . . . . . . . . . Garrison Access 6 | . . . . . . . 1 2 3 . . . . . . . . . . . . . . . Total Hacks 242 | . 9 . 17 . 5 . 23 40 19 17 7 . 25 1 . . 48 . 19 . . 2 . 10 Successful 129 | . 6 . 6 . 5 . 12 20 9 7 2 . 7 . . . 48 . 6 . . 1 . . Failed 113 | . 3 . 11 . . . 11 20 10 10 5 . 18 1 . . . . 13 . . 1 . 10 Catastrophic 28 | . . . 2 . . . 4 1 2 2 5 . 6 . . . . . 2 . . . . 4 Database Lockouts . | . . . . . . . . . . . . . . . . . . . . . . . . . Manual 85 | . 5 . 13 . 1 . 10 20 3 9 2 3 13 1 . . . . 4 . . . . 1 Terminals 128 | . 9 . 17 . . . 10 26 5 17 7 . 25 1 . . . . 5 . . 2 . 4 Fabricators 23 | . . . . . . . . 10 4 . . . . . . . . . 9 . . . . . Repair Stations 13 | . . . . . . . 2 . 2 . . . . . . . . . 5 . . . . 4 Recycling Units 2 | . . . . . . . . . . . . . . . . . . . . . . . . 2 Scanalyzers 13 | . . . . . . . 9 . 4 . . . . . . . . . . . . . . . Garrison Access 10 | . . . . . . . 2 4 4 . . . . . . . . . . . . . . . Terminal Hacks 81 | . 4 . 3 . 5 . 1 3 2 4 2 . 6 . . . 48 . 2 . . 1 . . Record 43 | . . . . . 4 . . . . . 2 . 1 . . . 36 . . . . . . . Part Schematic 5 | . . . . . . . . 1 . . . . . . . . 4 . . . . . . . Robot Analysis 6 | . 1 . . . . . . . . . . . 1 . . . 4 . . . . . . . Prototype ID Bank 4 | . . . . . . . . . . . . . . . . . 4 . . . . . . . Open Door 4 | . . . . . . . . . . 4 . . . . . . . . . . . . . . Open DSF 3 | . . . . . . . . . 1 . . . . . . . . . 1 . . 1 . . Branch Access Points 4 | . . . 1 . . . 1 1 1 . . . . . . . . . . . . . . . Emergency Access Points 1 | . . . . . . . . . . . . . 1 . . . . . . . . . . . Terminal Index 2 | . . . 1 . . . . 1 . . . . . . . . . . . . . . . . Alert Level 2 | . 1 . . . . . . . . . . . 1 . . . . . . . . . . . Investigation Status 1 | . . . 1 . . . . . . . . . . . . . . . . . . . . . Recall Investigation 1 | . . . . . . . . . . . . . 1 . . . . . . . . . . . Hauler Manifests 2 | . 1 . . . . . . . . . . . . . . . . . 1 . . . . . Zone Layout 2 | . 1 . . . . . . . . . . . 1 . . . . . . . . . . . Derelict Proto ID Bank 1 | . . . . . 1 . . . . . . . . . . . . . . . . . . . Fabricator Hacks 9 | . . . . . . . . 6 1 . . . . . . . . . 2 . . . . . Network Status 1 | . . . . . . . . . . . . . . . . . . . 1 . . . . . Load Schematic 4 | . . . . . . . . 3 . . . . . . . . . . 1 . . . . . Build 4 | . . . . . . . . 3 1 . . . . . . . . . . . . . . . Repair Station Hacks 3 | . . . . . . . 2 . . . . . . . . . . . 1 . . . . . Scan Component 2 | . . . . . . . 1 . . . . . . . . . . . 1 . . . . . Repair 1 | . . . . . . . 1 . . . . . . . . . . . . . . . . . Recycling Unit Hacks . | . . . . . . . . . . . . . . . . . . . . . . . . . Scanalyzer 10 | . . . . . . . 8 . 2 . . . . . . . . . . . . . . . Insert Component 5 | . . . . . . . 4 . 1 . . . . . . . . . . . . . . . Analyze 5 | . . . . . . . 4 . 1 . . . . . . . . . . . . . . . Garrison Access Hacks 5 | . . . . . . . 1 1 3 . . . . . . . . . . . . . . . Seal Access 5 | . . . . . . . 1 1 3 . . . . . . . . . . . . . . . Unauthorized Hacks 21 | . 2 . 3 . . . . 10 1 3 . . 1 . . . . . 1 . . . . . Terminals 20 | . 2 . 3 . . . . 10 . 3 . . 1 . . . . . 1 . . . . . Track 1 | . . . . . . . . 1 . . . . . . . . . . . . . . . . Assimilate 9 | . 1 . 2 . . . . 5 . 1 . . . . . . . . . . . . . . Botnet 7 | . . . . . . . . 3 . 2 . . 1 . . . . . 1 . . . . . Operators 3 | . 1 . 1 . . . . 1 . . . . . . . . . . . . . . . . Fabricators 1 | . . . . . . . . . 1 . . . . . . . . . . . . . . . Liberate 1 | . . . . . . . . . 1 . . . . . . . . . . . . . . . Repair Stations . | . . . . . . . . . . . . . . . . . . . . . . . . . Recycling Units . | . . . . . . . . . . . . . . . . . . . . . . . . . Scanalyzers . | . . . . . . . . . . . . . . . . . . . . . . . . . Garrison Access . | . . . . . . . . . . . . . . . . . . . . . . . . . Data Cores Recovered 4 | . 1 . 1 . . . 1 . . . . . 1 . . . . . . . . . . . Used 3 | . 1 . . . . . 1 . . . . . 1 . . . . . . . . . . . Hacking Detections 65 | . 3 . 6 . . . 8 14 8 4 3 . 8 1 . . . . 5 . . . . 5 Full Trace Events 10 | . . . . . . . . 7 . 2 . . 1 . . . . . . . . . . . Feedback Events 2 | . . . . . . . . 2 . . . . . . . . . . . . . . . . Corruption 2 | . . . . . . . . 2 . . . . . . . . . . . . . . . . Feedback Blocked . | . . . . . . . . . . . . . . . . . . . . . . . . . Robot Schematics Acquired . | . . . . . . . . . . . . . . . . . . . . . . . . . Robots Built . | . . . . . . . . . . . . . . . . . . . . . . . . . Authchips . | . . . . . . . . . . . . . . . . . . . . . . . . . Time . | . . . . . . . . . . . . . . . . . . . . . . . . . Total Robot Build Rating . | . . . . . . . . . . . . . . . . . . . . . . . . . Part Schematics Acquired 13 | . . . . . . . 3 1 1 . . . . . . . 4 . . . 4 . . . Parts Built 8 | . . . . . . . . 6 2 . . . . . . . . . . . . . . . Authchips . | . . . . . . . . . . . . . . . . . . . . . . . . . Time 287 | . . . . . . . . 159 128 . . . . . . . . . . . . . . . Total Part Build Rating 52 | . . . . . . . . 36 16 . . . . . . . . . . . . . . . Parts Repaired 1 | . . . . . . . 1 . . . . . . . . . . . . . . . . . Time 38 | . . . . . . . 38 . . . . . . . . . . . . . . . . . Parts Recycled . | . . . . . . . . . . . . . . . . . . . . . . . . . Recycled Matter . | . . . . . . . . . . . . . . . . . . . . . . . . . Retrieved Matter . | . . . . . . . . . . . . . . . . . . . . . . . . . Retrieved Components . | . . . . . . . . . . . . . . . . . . . . . . . . . Parts Scanalyzed 5 | . . . . . . . 4 . 1 . . . . . . . . . . . . . . . Part Schematics Acquired 4 | . . . . . . . 3 . 1 . . . . . . . . . . . . . . . Parts Damaged . | . . . . . . . . . . . . . . . . . . . . . . . . . Bothacking | -11 -10 -10 -9 -9 -9 -8 -8 -7 -6 -6 -6 -6 -6 -5 -5 -5 -5 -4 -4 -3 -3 -2 -2 -1 ------------ Run | Yrd Mat Min Mat Min Exi Min Mat Fac Fac Ext Cet Arc Hub Fac Upp Upp Zhi Pro Fac Res Tes Res DSF Acc Used RIF Installer . | . . . . . . . . . . . . . . . . . . . . . . . . . Robots Hacked . | . . . . . . . . . . . . . . . . . . . . . . . . . Non-combat . | . . . . . . . . . . . . . . . . . . . . . . . . . Combat . | . . . . . . . . . . . . . . . . . . . . . . . . . Robot Hacks Applied . | . . . . . . . . . . . . . . . . . . . . . . . . . Relay Couplers Released 1 | . . . . . . . . . . . . . 1 . . . . . . . . . . . Machine Destruction 1 | . . . . . . . . . . . . . 1 . . . . . . . . . . . Fabnet Peak Effective % . | . . . . . . . . . . . . . . . . . . . . . . . . . Robots Rewired 11 | . . . . . . . . . . 11 . . . . . . . . . . . . . . Allies Hacked . | . . . . . . . . . . . . . . . . . . . . . . . . . Hacks Repelled . | . . . . . . . . . . . . . . . . . . . . . . . . . Allies | -11 -10 -10 -9 -9 -9 -8 -8 -7 -6 -6 -6 -6 -6 -5 -5 -5 -5 -4 -4 -3 -3 -2 -2 -1 -------- Run | Yrd Mat Min Mat Min Exi Min Mat Fac Fac Ext Cet Arc Hub Fac Upp Upp Zhi Pro Fac Res Tes Res DSF Acc Total Allies 21 | . 1 . . . . . . 3 . 12 5 . . . . . . . . . . . . . Largest Group 9 | . 1 . . . . . . 3 3 8 9 6 5 . . . . . . . . . . . Highest-Rated Group 690 | . 10 . . . . . . 46 46 358 690 537 413 . . . . . . . . . . . Highest-Rated Ally 159 | . 10 . . . . . . 26 26 159 130 124 96 . . . . . . . . . . . Total Orders 2 | . . . . . . . . 2 . . . . . . . . . . . . . . . . STAY 1 | . . . . . . . . 1 . . . . . . . . . . . . . . . . FOLLOW 1 | . . . . . . . . 1 . . . . . . . . . . . . . . . . Ally Attacks 225 | . . . . . . . . . . 100 92 8 25 . . . . . . . . . . . Total Damage 7122 | . . . . . . . . . . 2409 3109 357 1247 . . . . . . . . . . . Kills 41 | . . . . . . . . . . 16 19 2 4 . . . . . . . . . . . Allies Corrupted . | . . . . . . . . . . . . . . . . . . . . . . . . . Allies Melted 1 | . . . . . . . . . . 1 . . . . . . . . . . . . . . Intel | -11 -10 -10 -9 -9 -9 -8 -8 -7 -6 -6 -6 -6 -6 -5 -5 -5 -5 -4 -4 -3 -3 -2 -2 -1 ------- Run | Yrd Mat Min Mat Min Exi Min Mat Fac Fac Ext Cet Arc Hub Fac Upp Upp Zhi Pro Fac Res Tes Res DSF Acc Robot Analysis Total 6 | . 1 . . . . . . . . . . . 1 . . . 4 . . . . . . . Derelict Logs Recovered 5 | . . . . 1 . . . . . . . . . . 2 1 . 1 . . . . . . Drone Launches . | . . . . . . . . . . . . . . . . . . . . . . . . . Drone Recoveries . | . . . . . . . . . . . . . . . . . . . . . . . . . Exploration | -11 -10 -10 -9 -9 -9 -8 -8 -7 -6 -6 -6 -6 -6 -5 -5 -5 -5 -4 -4 -3 -3 -2 -2 -1 ------------- Run | Yrd Mat Min Mat Min Exi Min Mat Fac Fac Ext Cet Arc Hub Fac Upp Upp Zhi Pro Fac Res Tes Res DSF Acc Turns Passed 12884 | 82 1154 92 955 294 276 194 1588 1473 1385 901 505 165 742 413 333 484 223 186 434 124 115 5 82 679 Spaces Moved 13621 | 54 931 59 699 275 277 108 1138 1830 1870 801 603 215 676 458 561 543 256 334 593 254 200 13 103 770 Core 18 | 2 . . . . . . . . . . 1 . 1 . . . . . . . . . . 14 Treads 74 | . 73 . . . . . . . . . . . . . . . . . . . . . . 1 Legs . | . . . . . . . . . . . . . . . . . . . . . . . . . Wheels 3466 | 52 858 59 699 275 277 108 1138 . . . . . . . . . . . . . . . . . Hover 10063 | . . . . . . . . 1830 1870 801 602 215 675 458 561 543 256 334 593 254 200 13 103 755 Flight . | . . . . . . . . . . . . . . . . . . . . . . . . . Fastest Speed 25 | 50 90 105 95 95 95 110 95 48 45 56 56 56 48 48 52 52 40 40 38 40 40 40 30 25 Average Speed 65 | 89 99 105 101 95 97 110 115 56 49 56 58 56 70 49 52 62 63 40 39 40 41 40 36 38 Slowest Speed 300 | 100 160 105 110 95 110 125 185 168 106 56 300 56 300 98 52 102 102 40 40 40 90 40 40 145 Overloaded Moves . | . . . . . . . . . . . . . . . . . . . . . . . . . Propulsion Burnouts . | . . . . . . . . . . . . . . . . . . . . . . . . . Robots Hopped 3 | . . . . . . . . . . 3 . . . . . . . . . . . . . . Cave-ins Triggered 7 | . . . . . . . . . . . . . . . . . . . . . . . . 7 Teleports 1 | . . . . . . . . . . . . . . . . . 1 . . . . . . . Exploration Rate (%) 48 | 4 95 19 53 77 60 19 67 45 41 71 95 97 61 10 74 61 62 57 15 7 32 1 82 16 Regions Visited 24 Branch Regions 13 Pre-discovered Areas 7 | . . . . 1 1 . . . . . . . . . 2 . 3 . . . . . . . Known Exits Taken 7 | . . . 1 . . . . 1 1 . . . 1 . . 1 . . 1 . . 1 . . Unknown Exits Taken 16 | 1 1 1 . 1 1 1 1 . . 1 1 1 . 1 1 . 1 1 . 1 1 . . . Scrap Searched 8 | . . . . . . . . . . . . . . . 3 3 . 2 . . . . . . Spaces Dug 122 | . . . 2 17 . 10 6 4 3 12 . . 4 . . 16 3 6 . 3 4 . . 32 Terrain Destroyed 873 | . 37 . 6 41 . 51 170 72 47 82 . 5 207 15 30 24 3 11 8 3 4 . . 57 Melee 6 | . . . 2 . . . . . 3 1 . . . . . . . . . . . . . . Projectile 209 | . . . . 2 . . 5 12 13 39 . 5 34 14 4 23 3 11 8 3 4 . . 29 AOE 655 | . 37 . 4 39 . 51 165 60 31 41 . . 173 . 26 . . . . . . . . 28 Terrain Rammed . | . . . . . . . . . . . . . . . . . . . . . . . . . Walls Destroyed . | . . . . . . . . . . . . . . . . . . . . . . . . . Machines Disabled . | . . . . . . . . . . . . . . . . . . . . . . . . . Actions | -11 -10 -10 -9 -9 -9 -8 -8 -7 -6 -6 -6 -6 -6 -5 -5 -5 -5 -4 -4 -3 -3 -2 -2 -1 --------- Run | Yrd Mat Min Mat Min Exi Min Mat Fac Fac Ext Cet Arc Hub Fac Upp Upp Zhi Pro Fac Res Tes Res DSF Acc Total 16709 | 73 1058 78 886 298 282 172 1383 2220 2327 1204 712 239 826 584 582 629 301 359 758 269 226 12 147 1084 Wait 1828 | . 57 4 89 14 . 51 145 292 405 192 48 15 46 81 1 43 16 3 128 8 19 . 2 169 Move 13593 | 53 930 58 698 274 276 107 1137 1829 1869 796 602 214 675 457 560 542 255 333 592 253 199 12 102 770 Hop 1 | . . . . . . . . . . 1 . . . . . . . . . . . . . . Pick Up 123 | 6 8 3 18 . 3 2 24 10 7 14 5 . 5 3 2 . 1 . 2 . . . 4 6 Fast Attach 106 | 7 . . 3 . 1 . 6 8 10 4 7 . 15 4 1 2 8 2 7 1 2 . 1 17 Attach 65 | . . 1 5 1 . . 5 8 2 11 . . 6 1 1 2 1 . 3 1 . . 3 14 Detach 19 | . . . 2 . 1 . . 2 . 1 . . 4 1 . . 4 . . . 1 . . 3 Swap 130 | . 7 1 13 3 1 5 14 10 5 3 14 . 7 4 5 5 3 4 6 2 . . 4 14 Drop 178 | . 1 3 22 1 . . 29 28 20 14 13 . 11 4 2 2 4 2 7 . . . 4 11 Fire 462 | 6 55 8 30 5 . 7 23 32 3 36 23 10 56 29 10 33 8 15 13 4 5 . 1 50 Melee 14 | . . . 6 . . . . . 6 2 . . . . . . . . . . . . . . Ram 8 | 1 . . . . . . . 1 . 1 . . 1 . . . . . . . . . . 4 Kick . | . . . . . . . . . . . . . . . . . . . . . . . . . Crush . | . . . . . . . . . . . . . . . . . . . . . . . . . Escape Stasis 52 | . . . . . . . . . . . . . . . . . . . . . . . 26 26 Rewire 130 | . . . . . . . . . . 129 . . . . . . 1 . . . . . . . Trap . | . . . . . . . . . . . . . . . . . . . . . . . . . Miscellaneous . | . . . . . . . . . . . . . . . . . . . . . . . . . Route ------- -11/Scrapyard -10/Materials (discovered 5 exits: *Mat x3 / [*Min x2]) -10/Mines -9/Materials (discovered 3 exits: *Mat x2 / *Min) -9/Mines (discovered 4 exits: *Mat x2 / *Exi / [*Zio]) -9/Exiles -8/Mines -8/Materials (discovered 2 exits: *Fac x2) -7/Factory (discovered 4 exits: *Fac / Sto / *Low x2) -6/Factory (discovered 7 exits: *Fac x3 / *Low x2 / *Ext x2) -6/Extension (discovered 2 exits: *Fac / *Cet) -6/Cetus (discovered 3 exits: *Fac x2 / *Arc) -6/Archives (discovered 3 exits: *Fac / *Hub x2) -6/Hub_04(d) (discovered 3 exits: *Fac x3) -5/Factory -5/Upper Caves -5/Upper Caves (discovered 2 exits: *Fac / *Zhi) -5/Zhirov -4/Proximity Caves -4/Factory -3/Research (discovered 2 exits: Arm / [*Tes]) -3/Testing -2/Research -2/DSF -1/Access History --------- Turn | Location | Event 6 | -11/Scrapyard | Discovered new exit (range 16) 83 | -11/Scrapyard | Entered Materials 261 | -10/Materials | Discovered new exit (range 8) 303 | -10/Materials | Build established: Mutant 506 | -10/Materials | Discovered new exit (range 11) 662 | -10/Materials | Discovered new exit (range 15) 833 | -10/Materials | Discovered new exit (range 10) 991 | -10/Materials | Core integrity fell below 50% 1092 | -10/Materials | Discovered new exit (range 11) 1237 | -10/Materials | Entered Mines 1318 | -10/Mines | Discovered new exit (range 8) 1329 | -10/Mines | Entered Materials 1329 | -9/Materials | Evolved 2 slots: Utility x2 1540 | -9/Materials | Discovered new exit (range 5) 1629 | -9/Materials | Identified exit to Mines 1644 | -9/Materials | Build established: Scavenger-Mutant 1979 | -9/Materials | Build established: Mutant 2054 | -9/Materials | Discovered new exit (range 11) 2284 | -9/Materials | Entered Mines 2323 | -9/Mines | Met a Derelict bent on vengeance 2410 | -9/Mines | Discovered new exit (range 8) 2503 | -9/Mines | A Derelict revealed a hidden shortcut to a safe place 2511 | -9/Mines | Discovered new exit (range 15) 2516 | -9/Mines | Learned location of Zion (-7) 2573 | -9/Mines | Deemed a non-threat by the Exiles lab entrance 2574 | -9/Mines | Discovered new exit (range 5) 2578 | -9/Mines | Entered Exiles 2602 | -9/Exiles | Met 8R-AWN 2619 | -9/Exiles | Met EX-HEX 2647 | -9/Exiles | Met EX-BIN 2658 | -9/Exiles | Aligned with FarCom system 2659 | -9/Exiles | Given EX-Vault access code 2681 | -9/Exiles | Opened EX-Vault 2689 | -9/Exiles | Found AWS/Gauss 2710 | -9/Exiles | Warned to stay clear of 0b10 Research branches 2739 | -9/Exiles | Met EX-DEC 2842 | -9/Exiles | Discovered new exit (range 14) 2854 | -9/Exiles | Left Exiles lab with AWS/Gauss 2854 | -9/Exiles | Entered Mines 2886 | -8/Mines | Destroyed 8 combat bots 3040 | -8/Mines | Discovered new exit (range 7) 3048 | -8/Mines | Entered Materials 3048 | -8/Materials | Evolved 2 slots: Propulsion x1, Utility x1 3326 | -8/Materials | Discovered new exit (range 8) 3461 | -8/Materials | Repaired Imp. Grenade Launcher 4313 | -8/Materials | Discovered new exit (range 5) 4636 | -8/Materials | Entered Factory 4636 | -7/Factory | Evolved 2 slots: Propulsion x1, Utility x1 5335 | -7/Factory | Discovered new exit (range 15) 5383 | -7/Factory | Identified exit to Factory 5615 | -7/Factory | Identified exit to Storage 5615 | -7/Factory | Identified exit to Lower Caves 5714 | -7/Factory | Build established: Scavenger-Scout 5767 | -7/Factory | Fabricated Hyp. Coil Gun? 5920 | -7/Factory | Fabricated Hyp. Coil Gun? 6085 | -7/Factory | Fabricated Hyp. Coil Gun (x2) 6109 | -7/Factory | Entered another Factory area 6109 | -6/Factory | Accompanied by 3 allies 6109 | -6/Factory | Evolved 2 slots: Utility x2 6162 | -6/Factory | Discovered new exit (range 15) 6169 | -6/Factory | Identified exit to Factory 6343 | -6/Factory | Discovered exit to Factory (range 16) 6522 | -6/Factory | Fabricated Q-thruster? 6641 | -6/Factory | Build established: Scout 7336 | -6/Factory | Discovered exit to Factory (range 10) 7346 | -6/Factory | Identified exit to Lower Caves 7346 | -6/Factory | Identified exit to Extension 7494 | -6/Factory | Entered Extension 7550 | -6/Extension | Energy Cycler disabled 7550 | -6/Extension | Rescued a captive Derelict 7550 | -6/Extension | Rescued a captive Derelict 7550 | -6/Extension | Rescued a captive Derelict 7550 | -6/Extension | Rescued a captive Derelict 7551 | -6/Extension | Rescued a captive Derelict 7551 | -6/Extension | Rescued a captive Derelict 7553 | -6/Extension | Rescued A7 7799 | -6/Extension | Destroyed 7 combat bots 8175 | -6/Extension | Build established: Commander-Mutant 8194 | -6/Extension | First assault squad dispatched 8376 | -6/Extension | Discovered exit to Factory (range 12) 8376 | -6/Extension | Discovered new exit (range 8) 8395 | -6/Extension | Entered Cetus 8395 | -6/Cetus | Accompanied by 8 allies (A7) 8400 | -6/Cetus | Acquired a Cetus Manufacturing Module code from A7 8409 | -6/Cetus | Spotted Cetus Guard 8409 | -6/Cetus | Spotted Cetus Guard 8413 | -6/Cetus | Spotted Cetus Guard 8413 | -6/Cetus | Spotted Cetus Guard 8418 | -6/Cetus | Allies destroyed Cetus Guard 8427 | -6/Cetus | Allies destroyed Cetus Guard 8436 | -6/Cetus | Allies destroyed Cetus Guard 8437 | -6/Cetus | Destroyed Cetus Guard 8463 | -6/Cetus | Lost 4 allies 8478 | -6/Cetus | Discovered exit to Factory (range 15) 8580 | -6/Cetus | Started Cetus Manufacturing Module 8605 | -6/Cetus | Manufactured an Enhanced Grunt 8630 | -6/Cetus | Manufactured an Enhanced Grunt 8645 | -6/Cetus | Escorted A7 to Cetus Mainframe 8655 | -6/Cetus | Manufactured an Enhanced Grunt 8675 | -6/Cetus | Discovered new exit (range 16) 8680 | -6/Cetus | Manufactured an Enhanced Grunt 8686 | -6/Cetus | Spotted Cetus Guard 8686 | -6/Cetus | Spotted Cetus Guard 8705 | -6/Cetus | Manufactured an Enhanced Grunt 8710 | -6/Cetus | Spotted Cetus Guard 8710 | -6/Cetus | Spotted Cetus Guard 8716 | -6/Cetus | Allies destroyed Cetus Guard 8718 | -6/Cetus | Destroyed Cetus Guard 8722 | -6/Cetus | Destroyed Cetus Guard 8727 | -6/Cetus | Allies destroyed Cetus Guard 8772 | -6/Cetus | Discovered exit to Factory (range 16) 8777 | -6/Cetus | Met Revision 17 8801 | -6/Cetus | Lost 3 allies 8900 | -6/Cetus | Entered Archives 8900 | -6/Archives | Accompanied by 6 allies (A7) 8905 | -6/Archives | Received a hacking code to weaken MAIN.C 8943 | -6/Archives | Unable to access archive contents 8950 | -6/Archives | Unable to access archive contents 8956 | -6/Archives | Discovered new exit (range 16) 8993 | -6/Archives | Discovered new exit (range 15) 8998 | -6/Archives | Discovered exit to Factory (range 15) 9023 | -6/Archives | Build established: Scavenger-Mutant 9041 | -6/Archives | Unable to access archive contents 9065 | -6/Archives | Entered Hub_04(d) 9065 | -6/Hub_04(d) | Accompanied by 5 allies 9086 | -6/Hub_04(d) | Discovered exit to Factory (range 11) 9221 | -6/Hub_04(d) | Spotted B-75 Beast 9254 | -6/Hub_04(d) | Allies destroyed B-75 Beast 9302 | -6/Hub_04(d) | Lost 4 allies 9350 | -6/Hub_04(d) | Discovered exit to Factory (range 16) 9351 | -6/Hub_04(d) | Lost 7 parts (1p1n4u1w) 9611 | -6/Hub_04(d) | Discovered exit to Factory (range 14) 9765 | -6/Hub_04(d) | First assault squad dispatched 9783 | -6/Hub_04(d) | Network Hub disabled 9807 | -6/Hub_04(d) | Entered Factory 9807 | -5/Factory | Evolved 2 slots: Power x1, Propulsion x1 10002 | -5/Factory | Discovered new exit (range 10) 10220 | -5/Factory | Entered Upper Caves 10222 | -5/Upper Caves | Attracted the attention of an 0b10 checkpoint 10421 | -5/Upper Caves | Learned location of Armory (-3) 10545 | -5/Upper Caves | Discovered new exit (range 14) 10547 | -5/Upper Caves | Ambushed by wild Derelicts 10553 | -5/Upper Caves | Entered another Upper Caves area 10579 | -5/Upper Caves | Discovered new exit (range 12) 10689 | -5/Upper Caves | Identified exit to Zhirov 10719 | -5/Upper Caves | Encountered a Warlord checkpoint 11037 | -5/Upper Caves | Entered Zhirov 11037 | -5/Zhirov | Discovered new exit (range 3) 11066 | -5/Zhirov | Met Zhirov 11104 | -5/Zhirov | Learned location of Quarantine (-2) 11104 | -5/Zhirov | Learned location of Testing (-3) 11104 | -5/Zhirov | Learned location of Command (-1) 11113 | -5/Zhirov | Zhirov requested help retrieving the SGEMP Prototype 11135 | -5/Zhirov | Found Alien Artifact 11135 | -5/Zhirov | Identified Integrated Reactor 11135 | -5/Zhirov | Installed Integrated Reactor, increased core energy generation (+10) 11143 | -5/Zhirov | Found Alien Artifact 11143 | -5/Zhirov | Identified Transdimensional Reconstructor 11143 | -5/Zhirov | Warped through subspace 11260 | -5/Zhirov | Entered Proximity Caves 11352 | -4/Proximity Caves | Spotter reported a threat 11381 | -4/Proximity Caves | Spotted B-86 Titan 11405 | -4/Proximity Caves | Spotter reported a threat 11442 | -4/Proximity Caves | Discovered new exit (range 11) 11446 | -4/Proximity Caves | Entered Factory 11446 | -4/Factory | Evolved 2 slots: Utility x1, Weapon x1 11758 | -4/Factory | Build established: Scavenger-Tank 11783 | -4/Factory | Discovered new exit (range 3) 11815 | -4/Factory | Identified exit to Research 11846 | -4/Factory | Spotted B-86 Titan 11880 | -4/Factory | Entered Research 11880 | -3/Research | Evolved 2 slots: Utility x1, Weapon x1 11881 | -3/Research | Identified exit to Armory 11893 | -3/Research | Discovered new exit (range 12) 11900 | -3/Research | Spotted B-86 Titan 11965 | -3/Research | Garrison activated, responded to threat 12004 | -3/Research | Entered Testing 12005 | -3/Testing | Maximum security lockdown engaged 12077 | -3/Testing | Discovered new exit (range 11) 12104 | -3/Testing | Found Prototype Energy Gun 12104 | -3/Testing | Identified Hyp. EM Gauss Rifle 12119 | -3/Testing | Entered Research 12119 | -2/Research | Evolved 2 slots: Propulsion x1, Utility x1 12124 | -2/Research | Identified exit to DSF 12124 | -2/Research | Entered DSF 12150 | -2/DSF | Additional patrols routed to DSF 12182 | -2/DSF | Discovered new exit (range 15) 12206 | -2/DSF | Entered Access 12206 | -1/Access | Evolved 2 slots: Utility x2 12456 | -1/Access | First assault squad dispatched 12662 | -1/Access | Garrison activated, responded to threat 12681 | -1/Access | Lost 4 parts (3u1w) 12758 | -1/Access | Spotted B-99 Colossus 12805 | -1/Access | System corruption reached 10% 12833 | -1/Access | Crushed by falling debris 12851 | -1/Access | Crushed by falling debris 12864 | -1/Access | Crushed by falling debris 12865 | -1/Access | Crushed by falling debris 12870 | -1/Access | Crushed by falling debris 12872 | -1/Access | Crushed by falling debris 12872 | -1/Access | Core integrity fell below 50% 12873 | -1/Access | Crushed by falling debris 12879 | -1/Access | Core integrity fell below 20% 12885 | -1/Access | Destroyed by S-43 Plague with Heavy Machine Gun Last Messages --------------- 12878_ H-88 Terminator knocked back. 12879_ R-10 Processor collects Wheel. 12879_ Slug penetrates Wall. 12879_ Penetrated by Slug. 12880_ Slug penetrates Wall. 12880_ Slug penetrates H-88 Terminator. 12880_ Penetrated by Slug. 12881_ Slug penetrates Wall. 12882_ Acquired Biometal Heavy Treads. 12882_ Penetrated by Slug. 12882_ Slug penetrates Wall. 12882_ Penetrated by Slug. 12883_ Slug penetrates Wall. 12884_ Penetrated by Slug. 12884_ Slug penetrates Wall. 12884_ Penetrated by Slug. 12884_ Slug penetrates H-88 Terminator. 12884_ Penetrated by Slug. 12885_ Slug penetrates Wall. [Achievement: This Is Interesting...] Map ----- +----------------------------------------------------+ | ?????????????????????????????????????????????????? | | ?????????????????????????????????????????????????? | | ?????????????????????????????????????????????????? | | ?????????????????????????????????????????????????? | | ?????????????????????????????????????????????????? | | ?????????????????????????????????????????????????? | | ?????????????????????????????????????????????????? | | ?????????????????????????????????????????????????? | | ?????????????????????????????????????????????????? | | ?????????????????????????????????????????????????? | | ?????????????????????????????????????????????????? | | ?????????????????????????????????????????????????? | | ?????????????????????????????????????????????????? | | ?????????????????????????????????????????????????? | | ?????????????????????????????????????????????????? | | ?????????????????????????????????????????????????? | | ??????????????????????????????????? #????????????? | | ?????????????????????????????????? #????????????? | | ????????????????????????????????? #????????????? | | ???????????????Y???????????????? #????????????? | | ??????????BB??#?????????######## #????????????? | | ??????????BB?# #????????+ #????????????? | | ?????????????# #????????# o #????????????? | | ?????????????# #????????# #????????????? | | ?????????????# #????????# == +????????????? | | ?????????????# #????????#@ == #????????????? | | ?????????????# #????????# h h #????????????? | | ?????????????# #????????#ss h #????????????? | | ?????????????#=########## #????????????? | | ?????????????##= !! ## !#????????????? | | ?????????????### !! pp# Y #????????????? | | ?????????????# "!=|%= sYh h #????????????? | | ?????????????### * !! h# #????????????? | | ?????????????###! # #????????????? | | ??????????????## #########h #????????????? | | ??????????????## #???????? #????????????? | | ??""""""""""""## !#????????? #????????????? | | ??#"" ""# #?????????? #????????????? | | ??#" ### #??????????? ????????????? | | ??#"" #?# #??????? ?? ????????????? | | ??# #?#########???????? "T ?????????????? | | ??#"" #?????????????????? "" ?????????????? | | ??#"" #???????######????? ?????????????? | | ###"" ######### #????? ?????????????# | | #?????# #??????????#### | | #?????# #??????????? | | ###################### #?????# ######+#####??# | | ???????################ ##?????# ## #??# | | ???????# # #??????# ## #??# | | ???????# # #??????# ## " #### | +----------------------------------------------------+ Best States ------------- Heat Dissipation 90 Energy Generation 44 Energy Capacity 510 Matter Stores 300 Matter Capacity 300 Sight Range 18 Robot Scan Range 16 Terrain Scan Density 10 ECM Strength 2 Additional Mass Support 9 Base Temperature (-) 200 Armor Coverage 675 Resistance: TH 10 Propulsion Shielding 66 Utility Shielding 90 Phase Shifting 5 Evasion (%) 77 Targeting Accuracy 11 Core Analysis 6 Armor Integrity Analysis 30 Recoil Reduction 6 Particle Charging 30 Trap Extractor Capacity 4 Item Schematics ----------------- Gravmag System | -8/Materials | Scanalyzed Reflective Plating | -8/Materials | Scanalyzed Hvy. Ion Cannon | -8/Materials | Scanalyzed Hyp. Coil Gun | -7/Factory | Hacked Imp. Grenade Launcher | -6/Factory | Scanalyzed Assault Drone Bay | -5/Zhirov | Free Exp. Heat Sink | -5/Zhirov | Free Exp. Optical Array | -5/Zhirov | Free Imp. Arc Thrower | -5/Zhirov | Free Neutron Missile Launcher | -3/Testing | Archive Hvy. Wave Gun | -3/Testing | Archive Com. Tesla Bomb Launcher | -3/Testing | Archive Adv. Variable Charge Gun | -3/Testing | Archive Robot Schematics ------------------ None Fabricated ------------ Hyp. Coil Gun | x2 | -7/Factory Hyp. Coil Gun | x2 | -7/Factory Hyp. Coil Gun | x2 | -7/Factory Q-thruster | x2 | -6/Factory | Preloaded Alien Tech Used ----------------- Integrated Reactor Transdimensional Reconstructor Achievements -------------- Alien Tech It Was An Accident, I Swear Main Advantage Overkill Prison Break Project G-00 Revising The Future Subspace Traveler The Science Guy This Is Interesting... Challenges ------------ None Game ------ Seed TrackerAngularProtection Manual? 0 Play Time 03:52:53 Cumulative 36.9 hours Start 2024.04.10 @ 09:31:20 End 2024.04.11 @ 13:38:06 Sessions 3 Manual Loads 0 Difficulty Rogue Special Mode None Game No. 28 Rogue 28 Adventurer 0 Explorer 0 Win Type - Total 1 Types 1/0/0/0/0/0/0/0/0 Lore% 30 Gallery% 39 Achievement% 38 Wizard Run 0 Options --------- Layout 0 ASCII 0 Keyboard 0 Movement Mouse Keybinds 0 Fullscreen 2 Font 20/SmallcapsGlow Map View 140x60 Zoom Use 0% Tactical HUD 1 Map Filters NONE Filters NONE Steam 1 RUN: 838a1c09-40ad-4ab9-81c6-757f92bfd0cf